Cogmind - Beta 11 @@@ ROGUE MODE // 2022.04.06 @ 18:20:46 Player: Cookie Result: Self-destructed Performance ------------- Evolutions (3) 1500 Regions Visited (8) 1600 Robots Destroyed (27) 135 Value Destroyed (836) 836 Prototype IDs (9) 180 Alien Tech Used (0) 0 Bonus (1276) 1276 TOTAL SCORE: 5527 Bonus ------- Follower Combat Kills 101 Entered Garrisons 200 Used RIF Installer 500 Entered DSFs 500 Friendly Fire -25 Cogmind --------- Core Integrity 556/700 Matter 300/300 Energy 525/525 System Corruption 0% Temperature Cool (0) Movement Rolling (101) Ox1 Location -7/Garrison Parts ------- > --- POWER (2) -------- Deuterium Engine > --- PROPULSION (3) --- Wheel Wheel Compact Wheel > --- UTILITY (5) ------ Large Storage Unit High-capacity Battery Improved Propulsion Shielding > --- WEAPON (3) ------- Field Laser High-powered Field Laser > --- INVENTORY (15) --- Light Nuclear Core Compact Wheel Improved Heat Sink High-capacity Battery (250) Advanced Weight Redist. System Plasma Cannon Plasma Cannon Missile Launcher Missile Launcher Remote Datajack Peak State ------------ > --- POWER ------------ Improved Ion Engine Light Nuclear Core > --- PROPULSION ------- Wheel Wheel Compact Wheel > --- UTILITY ---------- Improved Heat Sink Large Storage Unit High-capacity Battery Improved Propulsion Shielding Shield Generator > --- WEAPON ----------- EM Shotgun EM Shotgun High-powered Field Laser > --- INVENTORY -------- Deuterium Engine Compact Wheel Heat Sink Improved Heat Sink High-capacity Battery Advanced Weight Redist. System Medium Laser Medium Laser Field Laser Missile Launcher Missile Launcher [Rating: 29] Favorites ----------- Power Improved Ion Engine Engine Improved Ion Engine Power Core Light Nuclear Core Propulsion Wheel Treads Light Treads Wheel Wheel Utility Improved Heat Sink Device Improved Heat Sink Storage Large Storage Unit Processor Signal Interpreter Protection Improved Propulsion Shielding Weapon Medium Laser Energy Gun Medium Laser Launcher Rocket Launcher Build | -11 -10 -10 -9 -9 -8 -7 -7 -7 ------- Run | Scr Mat Min Mat Min Mat Fac DSF Gar Slots Evolved 6 | . . . 2 . 2 2 . . Power 1 | . . . 1 . . . . . Propulsion 1 | . . . . . . 1 . . Utility 3 | . . . 1 . 1 1 . . Weapon 1 | . . . . . 1 . . . Parts Attached 38 | 8 8 . 4 . 8 5 . 5 Power 9 | 2 1 . 3 . 1 1 . 1 Engine 7 | 2 1 . 3 . . . . 1 Core 2 | . . . . . 1 1 . . Reactor . | . . . . . . . . . Propulsion 5 | 2 2 . . . . 1 . . Treads 2 | 2 . . . . . . . . Leg . | . . . . . . . . . Wheel 3 | . 2 . . . . 1 . . Hover . | . . . . . . . . . Flight . | . . . . . . . . . Utility 11 | 1 4 . 1 . 3 1 . 1 Device 5 | . 2 . . . 1 1 . 1 Storage 4 | 1 1 . 1 . 1 . . . Processor 1 | . 1 . . . . . . . Hackware . | . . . . . . . . . Protection 1 | . . . . . 1 . . . Artifact . | . . . . . . . . . Weapon 13 | 3 1 . . . 4 2 . 3 Energy Gun 12 | 3 1 . . . 3 2 . 3 Energy Cannon . | . . . . . . . . . Ballistic Gun . | . . . . . . . . . Ballistic Cannon . | . . . . . . . . . Launcher 1 | . . . . . 1 . . . Special Weapon . | . . . . . . . . . Impact Weapon . | . . . . . . . . . Slashing Weapon . | . . . . . . . . . Piercing Weapon . | . . . . . . . . . Special Melee Weapon . | . . . . . . . . . Unidentified Prototypes 1 | . . . . . . 1 . . Parts Lost 11 | . 2 . . . . . 1 8 Power 2 | . . . . . . . . 2 Propulsion 1 | . 1 . . . . . . . Utility 3 | . . . . . . . . 3 Weapon 5 | . 1 . . . . . 1 3 Highest Loss Streak 3 | . 2 . . . . . 1 3 To Critical Strikes . | . . . . . . . . . Average Slot Usage (%) 95 | . 94 100 98 100 94 95 96 92 Engine 12 | . 14 14 20 22 10 7 7 6 Core 3 | . . . . . 7 7 7 7 Treads 5 | . 24 . . . . . . . Wheel 17 | . 2 28 22 22 18 21 23 23 Device 10 | . 8 14 11 11 9 12 15 9 Storage 16 | . 14 14 22 22 18 15 15 15 Protection 2 | . . . . . 4 7 7 7 Energy Gun 24 | . 27 28 22 22 24 21 19 21 Naked Turns . | . . . . . . . . . Heaviest Build 50 | 14 30 30 40 40 47 49 49 50 Greatest Support 40 | 40 40 20 20 20 29 36 36 36 Greatest Overweight (x) 4 | . 4 1 1 1 2 1 1 1 Average Overweight (x) . | . . 1 1 1 1 1 1 1 Largest Inventory Capacity 15 | 8 15 15 15 15 15 15 15 15 Average Capacity 13 | 7 8 15 15 15 15 15 15 15 Most Carried 13 | 5 7 10 9 7 13 12 12 11 Average Carried 7 | 2 4 8 6 6 10 10 11 9 Final Capacity 15 | 8 15 15 15 15 15 15 15 15 Final Carried 12 | 4 5 10 6 7 12 11 12 10 Class Distribution -------------------- 65% | Mutant 27% | Tank 6% | Gunner Dominant Class ---------------- Mutant | -10/Materials Mutant | -10/Mines Mutant | -9/Materials Mutant | -9/Mines Tank | -8/Materials Tank | -7/Factory Mutant | -7/DSF Tank | -7/Garrison Resources | -11 -10 -10 -9 -9 -8 -7 -7 -7 ----------- Run | Scr Mat Min Mat Min Mat Fac DSF Gar Matter Collected 540 | 211 129 10 40 . 80 . . 70 Remotely . | . . . . . . . . . Salvage Created 996 | . 287 105 48 . 273 . . 283 Parts 45 | . 11 8 1 . 19 . . 6 Haulers Intercepted . | . . . . . . . . . Recyclers Shooed 1 | . . . 1 . . . . . Parts Field Recycled . | . . . . . . . . . Retrieved Matter . | . . . . . . . . . Parts Self-Destructed . | . . . . . . . . . Prevented . | . . . . . . . . . Kills | -11 -10 -10 -9 -9 -8 -7 -7 -7 ------- Run | Scr Mat Min Mat Min Mat Fac DSF Gar Combat Hostiles Destroyed 25 | . 6 4 1 . 9 . . 5 Guns 21 | . 6 4 . . 9 . . 2 Classes Destroyed 5 | . 3 1 . . 1 . . . Tunneler 1 | . 1 . . . . . . . Watcher 1 | . 1 . . . . . . . Swarmer 8 | . . 2 . . 6 . . . Grunt 14 | . 6 2 1 . 2 . . 3 Sentry 3 | . . . . . 1 . . 2 Best Kill Streak 4 | . 4 2 1 . 3 . . 2 Combat Bots Only 4 | . 4 2 1 . 3 . . 2 Max Kills in Single Turn 2 | . 2 1 1 . 1 . . 1 Gunslinging . | . . . . . . . . . Exploded . | . . . . . . . . . Melee . | . . . . . . . . . Uniques/NPCs Destroyed . | . . . . . . . . . Combat | -11 -10 -10 -9 -9 -8 -7 -7 -7 -------- Run | Scr Mat Min Mat Min Mat Fac DSF Gar Damage Taken 1636 | . 577 61 47 4 251 . 90 606 Core 286 | . 64 34 24 . 20 . 19 125 Absorbed by Shields 151 | . . . . . . . 32 119 Redirected to Shielding 41 | . . . . . . . . 41 Core Remaining (%) 87 | 100 . 60 . 94 96 . . . Volleys Fired 85 | . 28 6 6 . 22 . . 23 Largest 3 | . 2 2 2 . 3 . . 3 Hottest 183 | . 100 100 100 . 140 . . 183 Shots Fired 186 | . 54 12 12 . 50 . . 58 Gun 186 | . 54 12 12 . 50 . . 58 Cannon . | . . . . . . . . . Launcher . | . . . . . . . . . Special . | . . . . . . . . . Kinetic . | . . . . . . . . . Thermal 157 | . 54 12 12 . 26 . . 53 Explosive . | . . . . . . . . . Electromagnetic 29 | . . . . . 24 . . 5 Robot Hit Streak 11 | . 11 7 6 . 9 . . 8 Robot Miss Streak 3 | . 2 1 2 . 3 . . 3 Penetration Max . | . . . . . . . . . Secondary Targets 2 | . 1 . . . 1 . . . Max Gunslinging Chain 1 | . 1 . . . 1 . . . Shots Hit Robots 125 | . 40 9 9 . 29 . . 38 Core Hits 58 | . 14 8 2 . 18 . . 16 Critical Kills . | . . . . . . . . . Critical Parts Destroyed . | . . . . . . . . . Critical Strikes 19 | . 6 3 3 . . . . 7 Burn 19 | . 6 3 3 . . . . 7 Melee Attacks . | . . . . . . . . . Impact . | . . . . . . . . . Slashing . | . . . . . . . . . Piercing . | . . . . . . . . . Sneak Attacks . | . . . . . . . . . Combat Hostiles . | . . . . . . . . . Follow-up Attacks . | . . . . . . . . . Damage Inflicted 1687 | . 520 139 113 9 374 . . 532 Guns 1678 | . 520 139 113 . 374 . . 532 Cannons . | . . . . . . . . . Explosions . | . . . . . . . . . Melee . | . . . . . . . . . Ramming 9 | . . . . 9 . . . . Kinetic . | . . . . . . . . . Thermal 1393 | . 520 139 113 . 138 . . 483 Explosive . | . . . . . . . . . Electromagnetic 285 | . . . . . 236 . . 49 Impact . | . . . . . . . . . Slashing . | . . . . . . . . . Piercing . | . . . . . . . . . Highest Corruption . | . . . . . . . . . Average Corruption . | . . . . . . . . . Corruption Purged . | . . . . . . . . . Corruption Blocked . | . . . . . . . . . Overload Shots . | . . . . . . . . . Overflow Damage . | . . . . . . . . . Projectiles . | . . . . . . . . . Explosions . | . . . . . . . . . Melee . | . . . . . . . . . Knockbacks . | . . . . . . . . . Impact . | . . . . . . . . . Kinetic . | . . . . . . . . . Secondary . | . . . . . . . . . Self-Inflicted Damage 4 | . . . . 4 . . . . Shots . | . . . . . . . . . Rammed 1 | . . . . 1 . . . . Targets Rammed 1 | . . . . 1 . . . . Kicked . | . . . . . . . . . Crushed . | . . . . . . . . . Highest Temperature 425 | . 381 177 60 . 178 . . 425 Average Temperature 162 | . 221 93 24 . 76 . . 186 Received Heat Transfer 679 | . 318 21 24 . 36 . . 280 Effects 13 | . 6 . . . . . . 7 Shutdowns 6 | . 3 . . . . . . 3 Energy Bleed 1 | . 1 . . . . . . . Interference 5 | . 1 . . . . . . 4 Short Circuit 1 | . 1 . . . . . . . Siege Activations . | . . . . . . . . . Robots Corrupted . | . . . . . . . . . Combat Hostiles . | . . . . . . . . . Parts Fried . | . . . . . . . . . Impact Corruptions . | . . . . . . . . . Robots Melted 4 | . . . 1 . . . . 3 Combat Hostiles 4 | . . . 1 . . . . 3 Parts Melted 15 | . 9 1 2 . . . . 3 Heat Transferred 4684 | . 1961 629 555 . 407 . . 1132 Parts Sabotaged . | . . . . . . . . . Parts Stolen . | . . . . . . . . . Parts Stripped . | . . . . . . . . . Power Chain Reactions . | . . . . . . . . . Missiles Intercepted . | . . . . . . . . . Alert | -11 -10 -10 -9 -9 -8 -7 -7 -7 ------- Run | Scr Mat Min Mat Min Mat Fac DSF Gar Peak Influence 283 | . 199 161 283 109 249 72 53 82 Initial 109 | . . . 62 109 42 72 53 32 Average 97 | . 76 70 130 109 161 72 48 50 Maximum Alert Level 1 | . . . 1 . 1 . . . Low Security (%) 87 | 100 100 100 89 100 58 100 100 100 Level 1 12 | . . . 10 . 41 . . . Level 2 . | . . . . . . . . . Level 3 . | . . . . . . . . . Level 4 . | . . . . . . . . . Level 5 . | . . . . . . . . . High Security . | . . . . . . . . . Max Security . | . . . . . . . . . Squads Dispatched 6 | . 1 . . . 5 . . . Investigation 3 | . 1 . . . 2 . . . Extermination . | . . . . . . . . . Reinforcement 3 | . . . . . 3 . . . Assault . | . . . . . . . . . Garrison . | . . . . . . . . . Intercept . | . . . . . . . . . Searches Triggered . | . . . . . . . . . Construction Impeded . | . . . . . . . . . Haulers Reinforced . | . . . . . . . . . Active Scanning Responses . | . . . . . . . . . Cargo Convoy Interrupts . | . . . . . . . . . Stealth | -11 -10 -10 -9 -9 -8 -7 -7 -7 --------- Run | Scr Mat Min Mat Min Mat Fac DSF Gar Distress Signals 2 | . 1 . 1 . . . . . Communications Jammed . | . . . . . . . . . Distress Signals . | . . . . . . . . . Times Spotted 61 | . 10 12 9 . 16 . 1 13 Peak Tracking Total 9 | . 6 5 5 . 5 . 2 9 Tactical Retreats 3 | . . 2 . . 1 . . . Traps | -11 -10 -10 -9 -9 -8 -7 -7 -7 ------- Run | Scr Mat Min Mat Min Mat Fac DSF Gar Traps Triggered 4 | . . . . . 1 . 1 2 Indirectly . | . . . . . . . . . Trap Hack Attempts . | . . . . . . . . . Triggered . | . . . . . . . . . Disarmed 10 | . 10 . . . . . . . Reprogrammed . | . . . . . . . . . Reused . | . . . . . . . . . Traps Extracted . | . . . . . . . . . Installed . | . . . . . . . . . Triggered . | . . . . . . . . . Machines | -11 -10 -10 -9 -9 -8 -7 -7 -7 ---------- Run | Scr Mat Min Mat Min Mat Fac DSF Gar Machines Disabled . | . . . . . . . . . Max in Single Turn . | . . . . . . . . . Machines Sabotaged . | . . . . . . . . . Garrisons Compromised . | . . . . . . . . . Overloaded Fab Kills . | . . . . . . . . . Hacking | -11 -10 -10 -9 -9 -8 -7 -7 -7 --------- Run | Scr Mat Min Mat Min Mat Fac DSF Gar Machines Accessed 9 | . 2 1 1 . 4 1 . . Terminals 8 | . 2 1 1 . 3 1 . . Fabricators . | . . . . . . . . . Repair Stations . | . . . . . . . . . Recycling Units . | . . . . . . . . . Scanalyzers 1 | . . . . . 1 . . . Garrison Access . | . . . . . . . . . Total Hacks 29 | . 13 1 2 . 12 1 . . Successful 19 | . 9 1 1 . 7 1 . . Failed 10 | . 4 . 1 . 5 . . . Catastrophic 2 | . . . 1 . 1 . . . Database Lockouts . | . . . . . . . . . Manual 9 | . 3 . 1 . 5 . . . Terminals 27 | . 13 1 2 . 10 1 . . Fabricators . | . . . . . . . . . Repair Stations . | . . . . . . . . . Recycling Units . | . . . . . . . . . Scanalyzers 2 | . . . . . 2 . . . Garrison Access . | . . . . . . . . . Terminal Hacks 17 | . 9 1 1 . 5 1 . . Record 1 | . . 1 . . . . . . Prototype ID Bank 5 | . 2 . 1 . 2 . . . Open DSF 1 | . . . . . . 1 . . Branch Access Points 1 | . 1 . . . . . . . Terminal Index 2 | . 1 . . . 1 . . . Locate Traps 2 | . 1 . . . 1 . . . Disarm Traps 2 | . 2 . . . . . . . Dispatch Records 1 | . 1 . . . . . . . Zone Layout 2 | . 1 . . . 1 . . . Fabricator Hacks . | . . . . . . . . . Repair Station Hacks . | . . . . . . . . . Recycling Unit Hacks . | . . . . . . . . . Scanalyzer 2 | . . . . . 2 . . . Insert Component 1 | . . . . . 1 . . . Analyze 1 | . . . . . 1 . . . Garrison Access Hacks . | . . . . . . . . . Unauthorized Hacks . | . . . . . . . . . Terminals . | . . . . . . . . . Fabricators . | . . . . . . . . . Repair Stations . | . . . . . . . . . Recycling Units . | . . . . . . . . . Scanalyzers . | . . . . . . . . . Garrison Access . | . . . . . . . . . Data Cores Recovered . | . . . . . . . . . Used . | . . . . . . . . . Hacking Detections 7 | . 2 . 1 . 3 1 . . Full Trace Events 2 | . 1 . . . 1 . . . Feedback Events . | . . . . . . . . . Feedback Blocked . | . . . . . . . . . Robot Schematics Acquired . | . . . . . . . . . Robots Built . | . . . . . . . . . Authchips . | . . . . . . . . . Time . | . . . . . . . . . Total Robot Build Rating . | . . . . . . . . . Part Schematics Acquired 1 | . . . . . 1 . . . Parts Built . | . . . . . . . . . Authchips . | . . . . . . . . . Time . | . . . . . . . . . Total Part Build Rating . | . . . . . . . . . Parts Repaired . | . . . . . . . . . Time . | . . . . . . . . . Parts Recycled . | . . . . . . . . . Recycled Matter . | . . . . . . . . . Retrieved Matter . | . . . . . . . . . Retrieved Components . | . . . . . . . . . Parts Scanalyzed 1 | . . . . . 1 . . . Part Schematics Acquired 1 | . . . . . 1 . . . Parts Damaged . | . . . . . . . . . Bothacking | -11 -10 -10 -9 -9 -8 -7 -7 -7 ------------ Run | Scr Mat Min Mat Min Mat Fac DSF Gar Used RIF Installer 1 | . . . . . . . . 1 Robots Hacked . | . . . . . . . . . Non-combat . | . . . . . . . . . Combat . | . . . . . . . . . Robot Hacks Applied . | . . . . . . . . . Relay Couplers Released . | . . . . . . . . . Fabnet Peak Effective % . | . . . . . . . . . Robots Rewired . | . . . . . . . . . Allies Hacked . | . . . . . . . . . Hacks Repelled . | . . . . . . . . . Allies | -11 -10 -10 -9 -9 -8 -7 -7 -7 -------- Run | Scr Mat Min Mat Min Mat Fac DSF Gar Total Allies 3 | . . 3 . . . . . . Largest Group 3 | . . 3 3 1 1 . . . Highest-Rated Group 40 | . . 40 40 16 16 . . . Highest-Rated Ally 16 | . . 16 16 16 16 . . . Total Orders . | . . . . . . . . . Ally Attacks 33 | . . 14 18 . 1 . . . Total Damage 363 | . . 143 204 . 16 . . . Kills 9 | . . 3 5 . 1 . . . Allies Corrupted . | . . . . . . . . . Allies Melted . | . . . . . . . . . Intel | -11 -10 -10 -9 -9 -8 -7 -7 -7 ------- Run | Scr Mat Min Mat Min Mat Fac DSF Gar Robot Analysis Total . | . . . . . . . . . Derelict Logs Recovered 1 | . . 1 . . . . . . Drone Launches . | . . . . . . . . . Drone Recoveries . | . . . . . . . . . Exploration | -11 -10 -10 -9 -9 -8 -7 -7 -7 ------------- Run | Scr Mat Min Mat Min Mat Fac DSF Gar Turns Passed 1811 | 97 412 266 159 48 515 68 35 211 Spaces Moved 1044 | 57 205 216 114 34 219 59 34 106 Core 12 | 11 1 . . . . . . . Treads 214 | 46 168 . . . . . . . Legs . | . . . . . . . . . Wheels 818 | . 36 216 114 34 219 59 34 106 Hover . | . . . . . . . . . Flight . | . . . . . . . . . Fastest Speed 50 | 50 80 95 95 95 95 101 101 101 Average Speed 111 | 138 146 95 95 95 109 101 101 101 Slowest Speed 250 | 160 250 95 95 95 110 101 101 101 Overloaded Moves . | . . . . . . . . . Propulsion Burnouts . | . . . . . . . . . Robots Hopped . | . . . . . . . . . Cave-ins Triggered . | . . . . . . . . . Exploration Rate (%) 21 | 5 33 37 18 7 23 2 41 27 Regions Visited 8 Branch Regions 2 Pre-discovered Areas . | . . . . . . . . . Known Exits Taken 3 | . 1 1 . . . 1 . . Unknown Exits Taken 4 | 1 . . 1 1 1 . . . Scrap Searched . | . . . . . . . . . Spaces Dug . | . . . . . . . . . Terrain Destroyed . | . . . . . . . . . Melee . | . . . . . . . . . Projectile . | . . . . . . . . . AOE . | . . . . . . . . . Terrain Rammed . | . . . . . . . . . Walls Destroyed . | . . . . . . . . . Machines Disabled . | . . . . . . . . . Actions | -11 -10 -10 -9 -9 -8 -7 -7 -7 --------- Run | Scr Mat Min Mat Min Mat Fac DSF Gar Total 1523 | 74 264 264 154 49 457 67 34 160 Wait 293 | . 8 38 25 14 185 . . 23 Move 1036 | 56 204 215 113 33 218 58 33 106 Hop . | . . . . . . . . . Pick Up 49 | 10 10 5 2 1 15 2 1 3 Fast Attach . | . . . . . . . . . Attach 33 | 6 6 . 4 . 8 4 . 5 Detach 3 | . 1 . . . 1 1 . . Swap 5 | 2 2 . . . . 1 . . Drop 18 | . 5 . 4 . 8 1 . . Fire 85 | . 28 6 6 . 22 . . 23 Melee . | . . . . . . . . . Ram 1 | . . . . 1 . . . . Kick . | . . . . . . . . . Crush . | . . . . . . . . . Escape Stasis . | . . . . . . . . . Rewire . | . . . . . . . . . Trap . | . . . . . . . . . Miscellaneous . | . . . . . . . . . Route ------- -11/Scrapyard -10/Materials (discovered 3 exits: *Mat / *Min x2) -10/Mines -9/Materials -9/Mines -8/Materials -7/Factory (discovered 2 exits: [*Low] / DSF) -7/DSF -7/Garrison History --------- Turn | Location | Event 4 | -11/Scrapyard | Discovered new exit (range 15) 98 | -11/Scrapyard | Entered Materials 268 | -10/Materials | Discovered new exit (range 13) 305 | -10/Materials | Build established: Mutant 368 | -10/Materials | Identified exit to Materials 401 | -10/Materials | Identified exit to Mines 510 | -10/Materials | Entered Mines 518 | -10/Mines | Met a Derelict bent on vengeance 609 | -10/Mines | Learned Materials terminal intel 620 | -10/Mines | Assisted by bots powering up and referring to "LRC-V3" 633 | -10/Mines | Assembled infested the area 638 | -10/Mines | Assisted by a Guerilla fighting off Assembled 757 | -10/Mines | Discovered exit to Materials (range 11) 776 | -10/Mines | Entered Materials 776 | -9/Materials | Accompanied by 3 allies 776 | -9/Materials | Evolved 2 slots: Power x1, Utility x1 777 | -9/Materials | Loaded intel: 12 terminal locations 882 | -9/Materials | Discovered new exit (range 15) 935 | -9/Materials | Entered Mines 935 | -9/Mines | Accompanied by 1 ally 942 | -9/Mines | Received a Rocket Launcher from a helpful Derelict 944 | -9/Mines | Discovered new exit (range 6) 983 | -9/Mines | Entered Materials 983 | -8/Materials | Accompanied by 1 ally 983 | -8/Materials | Evolved 2 slots: Utility x1, Weapon x1 1449 | -8/Materials | Discovered new exit (range 8) 1497 | -8/Materials | Build established: Tank 1498 | -8/Materials | Entered Factory 1498 | -7/Factory | Evolved 2 slots: Propulsion x1, Utility x1 1528 | -7/Factory | Discovered new exit (range 10) 1566 | -7/Factory | Identified exit to DSF 1566 | -7/Factory | Entered DSF 1590 | -7/DSF | Discovered new exit (range 11) 1601 | -7/DSF | Entered Garrison 1608 | -7/Garrison | Installed Relay Interface Framework 1658 | -7/Garrison | Triggered checkpoint 1675 | -7/Garrison | Lost 3 parts (1p1u1w) 1810 | -7/Garrison | Triggered checkpoint 1811 | -7/Garrison | Triggered checkpoint 1812 | -7/Garrison | Self-destructed Last Messages --------------- 01718_ G-47 Trooper destroyed. 01722_ Acquired 22 matter. 01723_ Overheating: System interference. 01723_ Heat Sink temporarily disabled. 01723_ Hpw. Field Laser temporarily disabled. 01724_ Acquired Lgt. Nuclear Core. 01725_ Power failure, Deuterium Engine shutdown. 01752_ Triggered Alarm Trap. 01752_ An alarm sounds. 01754_ Acquired Plasma Cannon. 01772_ Y-54 Guardian suffers critical hit (Burn). 01773_ Y-54 Guardian heat spikes uncontrollably. 01774_ Y-54 Guardian heat damages Imp. Light Armor Plating. 01775_ Y-54 Guardian heat damages Gatling Laser, Imp. Deuterium Engine. 01775_ Y-54 Guardian suffers critical hit (Burn). 01775_ Y-54 Guardian critical meltdown. 01809_ Med. Laser destroyed. 01811_ Heat Sink destroyed. 01811_ Beams of light sweep through the air. An alarm sounds. 01811_ Lgt. Nuclear Core destroyed. Map ----- +----------------------------------------------------+ | ?????????????????# #"#???????????????????????????? | | ?????????????????# #?????#####???????????????????? | | ?????????????????# #?????#! ]#???????????????????? | | ?????????????????# #?????#! ]#???????????????????? | | ?????????????????# #?????#! #???????????????????? | | ####???????????###=#?????#! #???????????????????? | | """#???????????# %######## ##???????????????????? | | " "#???????????# #????????????????????? | | " "#???????????# ##########????????????????????? | | " "#???????????### #?????????????????????????????? | | # ##?????????????#%#?????????????????????????????? | | #???????#+#####=###### #??????????????????????? | | ######### [ =+%[ #??????????????????????? | | ######%#### #??????????????????????? | | #?????##???????????????????????????? | | ############ #??????????????????????????????????? | | ???????????# #??????????????????????????????????? | | ???????????# #??????????????????????????????????? | | ???????????# #??????????????????????????????????? | | ???????????# #??????????????????????????????????? | | ???????????# #????????????????###???????????????? | | ???????????# #??????????????? ss#???????????????? | | ???????????# #????????######s #######?????????? | | ???????????# ########## s ????????? | | ???????????# ????????? | | ???????????# @ ????????? | | ???????????############# ## #???????????????? | | ???????????????????????# #?????????????????????? | | ??????????????????????? g ????????????????????? | | ?????????????????????? YY ??????????????????? | | ?????????????????????# ?????????????????? | | ?????????????????????# ???????????????? | | ?????????????????????### ## ##??????????????? | | ???????????????????????# #? #???????????????? | | ??????????????????????? ?? ??????????????? | | ??????????????????????? ?? ??????????????? | | ???????????????????????# ??? ?????????????? | | ???????????????????????## ##??""##??????????????? | | ????????????????????????? #?????????????????????? | | ????????????????????????? #?????????????????????? | | ????????????????????????? ??????????????????????? | | ?????????????????????????????????????????????????? | | ?????????????????????????????????????????????????? | | ?????????????????????????????????????????????????? | | ?????????????????????????????????????????????????? | | ?????????????????????????????????????????????????? | | ?????????????????????????????????????????????????? | | ?????????????????????????????????????????????????? | | ?????????????????????????????????????????????????? | | ?????????????????????????????????????????????????? | +----------------------------------------------------+ Best States ------------- Heat Dissipation 48 Energy Generation 23 Energy Capacity 585 Matter Stores 300 Matter Capacity 300 Sight Range 16 Terrain Scan Density 10 Propulsion Shielding 66 Evasion (%) 44 Recoil Reduction 2 Item Schematics ----------------- Lgt. Nuclear Core | -8/Materials | Scanalyzed Robot Schematics ------------------ None Fabricated ------------ Nothing Alien Tech Used ----------------- None Achievements -------------- None Challenges ------------ None Game ------ Seed ArmoredAuthchipComputer Manual? 0 Play Time 00:28:35 Cumulative 58.6 hours Start 2022.04.06 @ 17:35:36 End 2022.04.06 @ 18:20:46 Sessions 1 Manual Loads 0 Difficulty Rogue Special Mode None Game No. 96 Rogue 96 Adventurer 0 Explorer 0 Win Type - Total 1 Types 1/0/0/0/0/0/0/0/0 Lore% 37 Gallery% 35 Achievement% 36 Wizard Run 0 Options --------- ASCII 0 Keyboard 0 Movement Mouse Keybinds 0 Fullscreen 1 Font 18/SmallcapsGlow Map View 76x50 Tactical HUD 1 Map Filters NONE Filters NONE Steam 1 RUN: e9a233bf-bbf4-436a-ba9e-7062ac7da27e